[Event "*** Monthly 3|2 Blitz Masters"]
[Site "Chess.com"]
[Date "2014.10.28"]
[Round "7"]
[White "David_Klein"]
[Black "gumersindo"]
[Result "1-0"]
[WhiteElo "2362"]
[BlackElo "2146"]
[TimeControl "180+2"]
[EndTime "13:13:25 PDT"]
[Termination "David_Klein won by resignation"]

1. e4 {[%clk 0:03:00]} 1... e6 {[%clk 0:02:57.2]} 2. Qe2 {[%clk 0:03:00.4]} 2...
c5 {[%clk 0:02:57.1]} 3. Nf3 {[%clk 0:03:01]} 3... Nc6 {[%clk 0:02:58.1]} 4. g3
{[%clk 0:03:02.4]} 4... b6 {[%clk 0:02:57.2]} 5. Bg2 {[%clk 0:03:03.5]} 5... Bb7
{[%clk 0:02:58.8]} 6. O-O {[%clk 0:03:04.3]} 6... Nge7 {[%clk 0:03:00.5]} 7. c3
{[%clk 0:03:05.5]} 7... Ng6 {[%clk 0:02:59.9]} 8. d4 {[%clk 0:03:06.4]} 8...
cxd4 {[%clk 0:02:58.5]} 9. cxd4 {[%clk 0:03:07.8]} 9... d6 {[%clk 0:02:55.1]}
10. h4 {[%clk 0:03:06.8]} 10... Be7 {[%clk 0:02:53.3]} 11. Nc3 {[%clk
0:03:05.7]} 11... O-O {[%clk 0:02:52.2]} 12. h5 {[%clk 0:03:06.9]} 12... Nh8
{[%clk 0:02:52.9]} 13. h6 {[%clk 0:03:04.4]} 13... g6 {[%clk 0:02:47]} 14. d5
{[%clk 0:03:05.1]} 14... Nb8 {[%clk 0:02:42.3]} 15. dxe6 {[%clk 0:03:02]} 15...
fxe6 {[%clk 0:02:42.6]} 16. Nd4 {[%clk 0:03:03.6]} 16... Qd7 {[%clk 0:02:31]}
17. Bh3 {[%clk 0:03:04.1]} 17... Rf6 {[%clk 0:02:31.5]} 18. Bg5 {[%clk
0:03:03.8]} 18... Ba6 {[%clk 0:02:29]} 19. Qd2 {[%clk 0:02:40]} 19... Bxf1
{[%clk 0:02:28.2]} 20. Rxf1 {[%clk 0:02:41.9]} 20... Nf7 {[%clk 0:02:23.1]} 21.
Bxf6 {[%clk 0:02:41.5]} 21... Bxf6 {[%clk 0:02:24.2]} 22. Bxe6 {[%clk 0:02:40]}
22... Qd8 {[%clk 0:02:19.7]} 23. Bd5 {[%clk 0:02:38.2]} 23... Nd7 {[%clk
0:02:18.5]} 24. Bxa8 {[%clk 0:02:25.2]} 24... Qxa8 {[%clk 0:02:18.9]} 25. Nd5
{[%clk 0:02:26.5]} 25... Bg5 {[%clk 0:02:16.7]} 26. f4 {[%clk 0:02:24.6]} 26...
Bxh6 {[%clk 0:02:17.6]} 27. Rc1 {[%clk 0:02:18.6]} 27... Nc5 {[%clk 0:02:17.5]}
28. Qe2 {[%clk 0:01:53]} 28... Bg7 {[%clk 0:02:07.1]} 29. Nf3 {[%clk 0:01:53.9]}
29... Qe8 {[%clk 0:02:04.6]} 30. Re1 {[%clk 0:01:53.7]} 30... Qa4 {[%clk
0:02:02.4]} 31. b4 {[%clk 0:01:53.1]} 31... Ne6 {[%clk 0:01:57.6]} 32. Qc4
{[%clk 0:01:47.5]} 32... Qa3 {[%clk 0:01:47.2]} 33. Re3 {[%clk 0:01:36]} 33...
Qb2 {[%clk 0:01:12.7]} 34. Ne7+ {[%clk 0:01:20.5]} 34... Kf8 {[%clk 0:01:13.4]}
35. Qxe6 {[%clk 0:01:21.6]} 35... Qxb4 {[%clk 0:00:58.6]} 36. Nd5 {[%clk
0:01:17.9]} 36... Qb1+ {[%clk 0:00:52.9]} 37. Re1 {[%clk 0:01:18.3]} 37... Qxa2
{[%clk 0:00:53.8]} 38. Qc8+ {[%clk 0:01:17.4]} 1-0

[Event "*** Monthly 3|2 Blitz Masters"]
[Site "Chess.com"]
[Date "2014.10.28"]
[Round "7"]
[White "ilmago"]
[Black "wannabe2700"]
[Result "0-1"]
[WhiteElo "1756"]
[BlackElo "2258"]
[TimeControl "180+2"]
[EndTime "13:13:37 PDT"]
[Termination "wannabe2700 won by resignation"]

1. e4 {[%clk 0:02:57.2]} 1... e6 {[%clk 0:02:59.8]} 2. d4 {[%clk 0:02:57.5]}
2... d5 {[%clk 0:03:01.7]} 3. Nc3 {[%clk 0:02:58]} 3... Bb4 {[%clk 0:03:01.1]}
4. e5 {[%clk 0:02:58.8]} 4... c5 {[%clk 0:03:01.9]} 5. a3 {[%clk 0:03:00.2]}
5... Bxc3+ {[%clk 0:03:03.5]} 6. bxc3 {[%clk 0:03:01.7]} 6... Ne7 {[%clk
0:03:05.4]} 7. a4 {[%clk 0:03:01.7]} 7... O-O {[%clk 0:03:05.9]} 8. Nf3 {[%clk
0:03:02]} 8... b6 {[%clk 0:03:06.8]} 9. Bd3 {[%clk 0:02:55.9]} 9... Ng6 {[%clk
0:02:53.4]} 10. h4 {[%clk 0:02:55.4]} 10... Ba6 {[%clk 0:02:50.1]} 11. Bxa6
{[%clk 0:02:54.9]} 11... Nxa6 {[%clk 0:02:52]} 12. h5 {[%clk 0:02:56]} 12... Ne7
{[%clk 0:02:52.4]} 13. Ng5 {[%clk 0:02:42.5]} 13... h6 {[%clk 0:02:47.1]} 14.
Qd3 {[%clk 0:02:41.5]} 14... hxg5 {[%clk 0:02:41.9]} 15. Qxa6 {[%clk 0:02:41.9]}
15... cxd4 {[%clk 0:02:39.6]} 16. cxd4 {[%clk 0:02:41.5]} 16... Qc7 {[%clk
0:02:37.8]} 17. Qd3 {[%clk 0:02:41]} 17... f6 {[%clk 0:02:25.8]} 18. h6 {[%clk
0:02:36.9]} 18... Nf5 {[%clk 0:02:22.8]} 19. hxg7 {[%clk 0:02:34.3]} 19... Qxg7
{[%clk 0:02:11.1]} 20. Ba3 {[%clk 0:02:24.2]} 20... fxe5 {[%clk 0:02:06.3]} 21.
Bxf8 {[%clk 0:02:22.8]} 21... Rxf8 {[%clk 0:02:08.2]} 22. O-O-O {[%clk
0:02:11.4]} 22... Nxd4 {[%clk 0:02:02.2]} 23. f3 {[%clk 0:02:05.9]} 23... Rc8
{[%clk 0:02:00.4]} 24. Rd2 {[%clk 0:01:57.1]} 24... Rc4 {[%clk 0:01:59.6]} 25.
Qa3 {[%clk 0:01:32.2]} 25... Qc7 {[%clk 0:01:50.5]} 26. Kb1 {[%clk 0:00:52.4]}
26... Nxc2 {[%clk 0:01:36.6]} 27. Qd3 {[%clk 0:00:41.7]} 27... Rb4+ {[%clk
0:01:31.9]} 28. Ka2 {[%clk 0:00:32.5]} 28... Rxa4+ {[%clk 0:01:29.8]} 29. Kb1
{[%clk 0:00:30.6]} 29... Na3+ {[%clk 0:01:22.8]} 30. Ka2 {[%clk 0:00:14.5]}
30... Nc4+ {[%clk 0:01:24.7]} 31. Kb3 {[%clk 0:00:15.6]} 31... Ra3+ {[%clk
0:01:24.4]} 0-1

[Event "*** Monthly 3|2 Blitz Masters"]
[Site "Chess.com"]
[Date "2014.10.28"]
[Round "7"]
[White "marabu44"]
[Black "GedoGluperd"]
[Result "0-1"]
[WhiteElo "2210"]
[BlackElo "2278"]
[TimeControl "180+2"]
[EndTime "13:14:13 PDT"]
[Termination "GedoGluperd won on time"]

1. b3 {[%clk 0:03:00]} 1... e5 {[%clk 0:02:57.6]} 2. Bb2 {[%clk 0:03:00.7]} 2...
d6 {[%clk 0:02:59]} 3. e3 {[%clk 0:03:01.7]} 3... Nd7 {[%clk 0:03:00]} 4. Nf3
{[%clk 0:03:01]} 4... Ngf6 {[%clk 0:03:01.1]} 5. d4 {[%clk 0:03:01.8]} 5... e4
{[%clk 0:03:00.8]} 6. Nfd2 {[%clk 0:03:02.5]} 6... d5 {[%clk 0:03:02.3]} 7. c4
{[%clk 0:03:03.7]} 7... c6 {[%clk 0:03:03.7]} 8. Ba3 {[%clk 0:03:02.8]} 8...
Bxa3 {[%clk 0:03:03.4]} 9. Nxa3 {[%clk 0:03:03.7]} 9... Qa5 {[%clk 0:03:05]} 10.
Nc2 {[%clk 0:03:01]} 10... O-O {[%clk 0:03:06.3]} 11. b4 {[%clk 0:03:00.9]}
11... Qd8 {[%clk 0:03:04.7]} 12. c5 {[%clk 0:03:02]} 12... Re8 {[%clk 0:03:04]}
13. Be2 {[%clk 0:03:02.1]} 13... Nf8 {[%clk 0:03:03.7]} 14. a4 {[%clk
0:02:55.4]} 14... h6 {[%clk 0:03:01]} 15. b5 {[%clk 0:02:54.3]} 15... N6h7
{[%clk 0:03:01.6]} 16. Nb3 {[%clk 0:02:33.6]} 16... Qg5 {[%clk 0:03:00.9]} 17.
Rg1 {[%clk 0:02:31.2]} 17... Qh4 {[%clk 0:03:00.2]} 18. h3 {[%clk 0:02:23.9]}
18... Bd7 {[%clk 0:03:00.6]} 19. Nb4 {[%clk 0:02:16.9]} 19... f5 {[%clk
0:02:55.1]} 20. Na5 {[%clk 0:02:05.3]} 20... f4 {[%clk 0:02:56.1]} 21. Ra3
{[%clk 0:01:51.5]} 21... Rab8 {[%clk 0:02:37.5]} 22. Bg4 {[%clk 0:01:44.7]}
22... cxb5 {[%clk 0:02:32.1]} 23. Bxd7 {[%clk 0:01:44.3]} 23... Nxd7 {[%clk
0:02:32.8]} 24. axb5 {[%clk 0:01:45.5]} 24... Ndf6 {[%clk 0:02:25.3]} 25. Qb3
{[%clk 0:01:12.5]} 25... Qg5 {[%clk 0:02:22.5]} 26. exf4 {[%clk 0:01:04.9]}
26... Qxf4 {[%clk 0:02:20.4]} 27. Nxd5 {[%clk 0:01:02.2]} 27... Nxd5 {[%clk
0:02:20.3]} 28. Qxd5+ {[%clk 0:01:02.7]} 28... Kh8 {[%clk 0:02:21.5]} 29. Re3
{[%clk 0:01:03.7]} 29... Nf6 {[%clk 0:02:20.5]} 30. Qc4 {[%clk 0:00:58.1]} 30...
Qc7 {[%clk 0:02:15.7]} 31. Nb3 {[%clk 0:00:50.5]} 31... Rbd8 {[%clk 0:02:16.8]}
32. Kd1 {[%clk 0:00:30.2]} 32... Nd5 {[%clk 0:02:15.6]} 33. Re2 {[%clk
0:00:25.5]} 33... e3 {[%clk 0:02:10.7]} 34. Rge1 {[%clk 0:00:19.5]} 34... Qf4
{[%clk 0:02:02.5]} 35. f3 {[%clk 0:00:17.4]} 35... Qf5 {[%clk 0:01:53.3]} 36.
Kc1 {[%clk 0:00:16.2]} 36... Re7 {[%clk 0:01:48.9]} 37. Qc2 {[%clk 0:00:16.8]}
37... Qf7 {[%clk 0:01:44.5]} 38. Kb2 {[%clk 0:00:10.6]} 38... Rde8 {[%clk
0:01:34.1]} 39. Qc4 {[%clk 0:00:08]} 39... Qf5 {[%clk 0:01:33.6]} 40. Qc2 {[%clk
0:00:06.1]} 40... Qf6 {[%clk 0:01:31.7]} 0-1

[Event "*** Monthly 3|2 Blitz Masters"]
[Site "Chess.com"]
[Date "2014.10.28"]
[Round "7"]
[White "GMHess"]
[Black "THORK"]
[Result "1-0"]
[WhiteElo "2441"]
[BlackElo "2177"]
[TimeControl "180+2"]
[EndTime "13:14:21 PDT"]
[Termination "GMHess won by resignation"]

1. Nf3 {[%clk 0:03:00]} 1... Nf6 {[%clk 0:02:53.2]} 2. g3 {[%clk 0:03:01.9]}
2... e6 {[%clk 0:02:53.2]} 3. Bg2 {[%clk 0:03:03.5]} 3... d5 {[%clk 0:02:54.8]}
4. O-O {[%clk 0:03:01.9]} 4... Be7 {[%clk 0:02:56.3]} 5. c4 {[%clk 0:03:03.4]}
5... O-O {[%clk 0:02:57.6]} 6. cxd5 {[%clk 0:03:05]} 6... exd5 {[%clk
0:02:58.5]} 7. d4 {[%clk 0:03:06.9]} 7... c6 {[%clk 0:02:56.6]} 8. Nc3 {[%clk
0:03:07.3]} 8... h6 {[%clk 0:02:56.2]} 9. Bf4 {[%clk 0:03:08.1]} 9... Bf5 {[%clk
0:02:55.6]} 10. Rc1 {[%clk 0:03:01.9]} 10... Nbd7 {[%clk 0:02:55.1]} 11. h3
{[%clk 0:02:48.8]} 11... Qb6 {[%clk 0:02:55.3]} 12. g4 {[%clk 0:02:37.7]} 12...
Bh7 {[%clk 0:02:54.1]} 13. Qb3 {[%clk 0:01:54.8]} 13... Qxb3 {[%clk 0:02:47.1]}
14. axb3 {[%clk 0:01:56.7]} 14... a6 {[%clk 0:02:46.8]} 15. Rfd1 {[%clk
0:01:48.3]} 15... Rfe8 {[%clk 0:02:47.5]} 16. Ne5 {[%clk 0:01:45.9]} 16... Bb4
{[%clk 0:02:44.9]} 17. Bg3 {[%clk 0:01:38.8]} 17... Re7 {[%clk 0:02:36.7]} 18.
Na2 {[%clk 0:01:28.5]} 18... Ba5 {[%clk 0:02:30.9]} 19. b4 {[%clk 0:01:29.3]}
19... Bb6 {[%clk 0:02:31.9]} 20. Nxd7 {[%clk 0:01:10.9]} 20... Rxd7 {[%clk
0:02:28.8]} 21. Nc3 {[%clk 0:01:10.9]} 21... Re8 {[%clk 0:02:28.5]} 22. Na4
{[%clk 0:00:51.6]} 22... Ba7 {[%clk 0:02:29.2]} 23. e3 {[%clk 0:00:43.3]} 23...
Ne4 {[%clk 0:02:29.9]} 24. Bh2 {[%clk 0:00:32.3]} 24... f5 {[%clk 0:02:26.3]}
25. Nc5 {[%clk 0:00:23.7]} 25... Bxc5 {[%clk 0:02:21.2]} 26. bxc5 {[%clk
0:00:25.6]} 26... fxg4 {[%clk 0:02:22.7]} 27. hxg4 {[%clk 0:00:26.5]} 27... Nf6
{[%clk 0:02:19.2]} 28. Bh3 {[%clk 0:00:20.2]} 28... g5 {[%clk 0:02:20.3]} 29.
Be5 {[%clk 0:00:20.2]} 29... Kf7 {[%clk 0:02:16.8]} 30. Kg2 {[%clk 0:00:19.1]}
30... Rde7 {[%clk 0:02:13.4]} 31. Rf1 {[%clk 0:00:19.1]} 31... Nd7 {[%clk
0:02:12.7]} 32. f4 {[%clk 0:00:19.9]} 32... Be4+ {[%clk 0:02:12.7]} 33. Kg3
{[%clk 0:00:20.2]} 33... Nxe5 {[%clk 0:02:12.6]} 34. fxe5+ {[%clk 0:00:21.5]}
34... Kg7 {[%clk 0:02:13.9]} 35. Rf6 {[%clk 0:00:22.3]} 35... Rf7 {[%clk
0:02:11.3]} 36. Rxf7+ {[%clk 0:00:12.7]} 36... Kxf7 {[%clk 0:02:12.1]} 37. Bg2
{[%clk 0:00:14.1]} 37... Bg6 {[%clk 0:02:06]} 38. Rc3 {[%clk 0:00:12.6]} 38...
Re7 {[%clk 0:02:06.3]} 39. Kf2 {[%clk 0:00:11.2]} 39... Ke6 {[%clk 0:02:07.4]}
40. Kg3 {[%clk 0:00:10.7]} 40... Rf7 {[%clk 0:02:08.4]} 41. Rb3 {[%clk
0:00:09.3]} 41... Be4 {[%clk 0:02:09]} 42. Rb6 {[%clk 0:00:09.5]} 42... Rg7
{[%clk 0:02:05.7]} 43. Bf1 {[%clk 0:00:09.5]} 43... Rf7 {[%clk 0:02:06.4]} 44.
Be2 {[%clk 0:00:10.6]} 44... Rg7 {[%clk 0:02:06.1]} 45. Bxa6 {[%clk 0:00:10.7]}
45... bxa6 {[%clk 0:02:06.7]} 46. Rxc6+ {[%clk 0:00:12.2]} 46... Kf7 {[%clk
0:02:07.4]} 47. Rc7+ {[%clk 0:00:07.4]} 47... Kf8 {[%clk 0:02:08]} 48. Rxg7
{[%clk 0:00:08.5]} 48... Kxg7 {[%clk 0:02:09.3]} 49. c6 {[%clk 0:00:10.2]} 1-0

[Event "*** Monthly 3|2 Blitz Masters"]
[Site "Chess.com"]
[Date "2014.10.28"]
[Round "7"]
[White "vovkcoach"]
[Black "KaydenTroffChess"]
[Result "1-0"]
[WhiteElo "2514"]
[BlackElo "2350"]
[TimeControl "180+2"]
[EndTime "13:14:51 PDT"]
[Termination "vovkcoach won by resignation"]

1. e4 {[%clk 0:03:00]} 1... c5 {[%clk 0:02:58.4]} 2. Nf3 {[%clk 0:03:01]} 2...
d6 {[%clk 0:02:59.7]} 3. d4 {[%clk 0:03:01.7]} 3... cxd4 {[%clk 0:03:01.6]} 4.
Nxd4 {[%clk 0:03:03.6]} 4... Nf6 {[%clk 0:03:02.8]} 5. Nc3 {[%clk 0:03:04.8]}
5... a6 {[%clk 0:03:04.1]} 6. Be2 {[%clk 0:03:04.1]} 6... e5 {[%clk 0:03:01.5]}
7. Nb3 {[%clk 0:03:03.1]} 7... Be7 {[%clk 0:03:00.6]} 8. O-O {[%clk 0:03:04.3]}
8... O-O {[%clk 0:03:01.7]} 9. Qd3 {[%clk 0:03:05.8]} 9... Be6 {[%clk
0:02:58.1]} 10. Nd5 {[%clk 0:03:05.6]} 10... Bxd5 {[%clk 0:02:57.2]} 11. exd5
{[%clk 0:03:07.5]} 11... Nbd7 {[%clk 0:02:58.4]} 12. c4 {[%clk 0:03:02.6]} 12...
b5 {[%clk 0:02:44.9]} 13. cxb5 {[%clk 0:03:00.5]} 13... Nb6 {[%clk 0:02:40.7]}
14. bxa6 {[%clk 0:02:58.8]} 14... e4 {[%clk 0:02:41.7]} 15. Qb5 {[%clk
0:02:52.1]} 15... Nbxd5 {[%clk 0:02:41.5]} 16. Bd2 {[%clk 0:02:44.4]} 16... Nc7
{[%clk 0:02:40]} 17. Qc6 {[%clk 0:02:44.3]} 17... Qb8 {[%clk 0:02:37.8]} 18.
Rfc1 {[%clk 0:02:42]} 18... Ncd5 {[%clk 0:02:15.4]} 19. Qb7 {[%clk 0:02:25.8]}
19... Qd8 {[%clk 0:01:50.1]} 20. Ba5 {[%clk 0:02:11]} 20... Qb8 {[%clk
0:01:29.7]} 21. Nd4 {[%clk 0:01:57.1]} 21... Nf4 {[%clk 0:00:57.7]} 22. Bf1
{[%clk 0:01:43.5]} 22... Qe8 {[%clk 0:00:14.1]} 23. Nc6 {[%clk 0:01:40.7]} 23...
N6d5 {[%clk 0:00:14.2]} 24. a7 {[%clk 0:01:34.1]} 24... e3 {[%clk 0:00:13.3]}
25. fxe3 {[%clk 0:01:34.7]} 25... Bh4 {[%clk 0:00:09.6]} 26. exf4 {[%clk
0:01:30.9]} 26... Bf2+ {[%clk 0:00:08.2]} 27. Kh1 {[%clk 0:01:31.5]} 27... Qe4
{[%clk 0:00:08.5]} 28. Rc4 {[%clk 0:01:20.8]} 28... Qf5 {[%clk 0:00:08.1]} 29.
Qb5 {[%clk 0:01:12.5]} 29... Kh8 {[%clk 0:00:06.4]} 30. Rd1 {[%clk 0:01:07]}
30... Ne3 {[%clk 0:00:06]} 31. Qxf5 {[%clk 0:01:07]} 31... Nxf5 {[%clk
0:00:07.9]} 32. Rd2 {[%clk 0:00:55.3]} 32... Rfc8 {[%clk 0:00:07.8]} 33. Rxf2
{[%clk 0:00:54.9]} 33... Ne3 {[%clk 0:00:08.9]} 34. Rc3 {[%clk 0:00:52.7]} 34...
Nd1 {[%clk 0:00:09.6]} 35. Rfc2 {[%clk 0:00:52.4]} 35... Nxc3 {[%clk 0:00:10.8]}
36. Rxc3 {[%clk 0:00:54.3]} 36... d5 {[%clk 0:00:12.1]} 37. Bb6 {[%clk
0:00:52.4]} 37... Re8 {[%clk 0:00:10.1]} 38. Re3 {[%clk 0:00:47.8]} 38... Rec8
{[%clk 0:00:09.6]} 39. Bb5 {[%clk 0:00:47.3]} 39... d4 {[%clk 0:00:10.1]} 40.
Bxd4 {[%clk 0:00:42.6]} 40... Rc7 {[%clk 0:00:11.2]} 41. Kg1 {[%clk 0:00:42.3]}
41... Rb7 {[%clk 0:00:12.3]} 42. a4 {[%clk 0:00:41.8]} 1-0

[Event "*** Monthly 3|2 Blitz Masters"]
[Site "Chess.com"]
[Date "2014.10.28"]
[Round "7"]
[White "VovAn1991"]
[Black "Trendle"]
[Result "1-0"]
[WhiteElo "2341"]
[BlackElo "2206"]
[TimeControl "180+2"]
[EndTime "13:14:59 PDT"]
[Termination "VovAn1991 won by resignation"]

1. e4 {[%clk 0:02:59.4]} 1... e6 {[%clk 0:02:59.4]} 2. d4 {[%clk 0:02:59]} 2...
d5 {[%clk 0:03:01]} 3. Nd2 {[%clk 0:03:00.3]} 3... Nc6 {[%clk 0:03:02]} 4. Ngf3
{[%clk 0:03:00.6]} 4... Nf6 {[%clk 0:03:02.7]} 5. e5 {[%clk 0:03:01]} 5... Nd7
{[%clk 0:03:03.8]} 6. Bb5 {[%clk 0:03:00.4]} 6... Be7 {[%clk 0:03:01.5]} 7. O-O
{[%clk 0:02:57.8]} 7... O-O {[%clk 0:02:53.8]} 8. Nb3 {[%clk 0:02:57.8]} 8... a5
{[%clk 0:02:52]} 9. a4 {[%clk 0:02:56.6]} 9... Na7 {[%clk 0:02:31.7]} 10. Bd3
{[%clk 0:02:56.1]} 10... b6 {[%clk 0:02:30.4]} 11. Bf4 {[%clk 0:02:42.4]} 11...
c5 {[%clk 0:02:30.6]} 12. dxc5 {[%clk 0:02:42.8]} 12... bxc5 {[%clk 0:02:30.9]}
13. c4 {[%clk 0:02:43.5]} 13... Nc6 {[%clk 0:01:47.5]} 14. Qb1 {[%clk
0:02:26.3]} 14... h6 {[%clk 0:01:30.7]} 15. Qc1 {[%clk 0:02:26]} 15... dxc4
{[%clk 0:01:30]} 16. Bxc4 {[%clk 0:02:22.5]} 16... Nb6 {[%clk 0:01:28.9]} 17.
Rd1 {[%clk 0:02:21.8]} 17... Qc7 {[%clk 0:01:29.2]} 18. Bb5 {[%clk 0:02:10.5]}
18... Nb4 {[%clk 0:01:24.9]} 19. Bxh6 {[%clk 0:02:10.4]} 19... gxh6 {[%clk
0:01:18]} 20. Qxh6 {[%clk 0:02:12.3]} 20... Bb7 {[%clk 0:00:48.4]} 21. Ng5
{[%clk 0:02:12.3]} 21... Bxg5 {[%clk 0:00:49.4]} 22. Qxg5+ {[%clk 0:02:14.2]}
22... Kh8 {[%clk 0:00:49.4]} 23. Qf6+ {[%clk 0:02:07]} 23... Kg8 {[%clk
0:00:49.6]} 24. Qg5+ {[%clk 0:01:48.5]} 24... Kh8 {[%clk 0:00:50.2]} 25. Bd3
{[%clk 0:01:02.3]} 25... f5 {[%clk 0:00:11.8]} 26. exf6 {[%clk 0:01:02.5]} 26...
Nxd3 {[%clk 0:00:13]} 27. Rxd3 {[%clk 0:01:04]} 27... Bxg2 {[%clk 0:00:14]} 28.
Kxg2 {[%clk 0:00:17.5]} 28... Rg8 {[%clk 0:00:14.3]} 29. Rh3+ {[%clk 0:00:18.4]}
29... Qh7 {[%clk 0:00:15.9]} 30. Rxh7+ {[%clk 0:00:18.6]} 30... Kxh7 {[%clk
0:00:17.8]} 31. Qg3 {[%clk 0:00:19]} 31... Nd5 {[%clk 0:00:16.9]} 32. Nxc5
{[%clk 0:00:17.6]} 32... Rab8 {[%clk 0:00:14.7]} 33. f7 {[%clk 0:00:13.2]} 33...
Rxg3+ {[%clk 0:00:14.7]} 34. hxg3 {[%clk 0:00:13.1]} 34... Rf8 {[%clk
0:00:09.5]} 35. Nxe6 {[%clk 0:00:13.4]} 1-0

[Event "*** Monthly 3|2 Blitz Masters"]
[Site "Chess.com"]
[Date "2014.10.28"]
[Round "7"]
[White "GeorgMeier"]
[Black "liczner"]
[Result "1-0"]
[WhiteElo "2542"]
[BlackElo "2413"]
[TimeControl "180+2"]
[EndTime "13:15:28 PDT"]
[Termination "GeorgMeier won on time"]

1. Nf3 {[%clk 0:03:00]} 1... Nf6 {[%clk 0:02:59]} 2. c4 {[%clk 0:03:00.9]} 2...
g6 {[%clk 0:03:00]} 3. b3 {[%clk 0:03:01.2]} 3... Bg7 {[%clk 0:03:00.4]} 4. Bb2
{[%clk 0:03:02.7]} 4... c5 {[%clk 0:03:01.6]} 5. g3 {[%clk 0:03:03.7]} 5... O-O
{[%clk 0:03:01.6]} 6. Bg2 {[%clk 0:03:05.2]} 6... Nc6 {[%clk 0:03:02.9]} 7. O-O
{[%clk 0:03:01.7]} 7... d6 {[%clk 0:03:02.5]} 8. d4 {[%clk 0:03:02.5]} 8... cxd4
{[%clk 0:03:03.2]} 9. Nxd4 {[%clk 0:03:03.2]} 9... Bd7 {[%clk 0:03:04]} 10. Nc2
{[%clk 0:03:03.7]} 10... a6 {[%clk 0:03:00.8]} 11. Nc3 {[%clk 0:03:05]} 11...
Rb8 {[%clk 0:02:57.6]} 12. Ne3 {[%clk 0:03:05.2]} 12... b5 {[%clk 0:02:47.3]}
13. Qd2 {[%clk 0:03:02.9]} 13... Qa5 {[%clk 0:02:27.2]} 14. Rfd1 {[%clk
0:03:02.4]} 14... Rfc8 {[%clk 0:02:24.9]} 15. Rac1 {[%clk 0:03:00.8]} 15... Ne8
{[%clk 0:02:14.4]} 16. c5 {[%clk 0:02:34.3]} 16... Nd4 {[%clk 0:01:45.9]} 17.
Ned5 {[%clk 0:02:23.4]} 17... Qd8 {[%clk 0:01:22.8]} 18. Ne4 {[%clk 0:02:06]}
18... Nf5 {[%clk 0:00:53.8]} 19. Bxg7 {[%clk 0:02:03.6]} 19... Kxg7 {[%clk
0:00:52.7]} 20. Qb2+ {[%clk 0:01:53.9]} 20... Kg8 {[%clk 0:00:52.6]} 21. cxd6
{[%clk 0:01:54.9]} 21... Nfxd6 {[%clk 0:00:50.2]} 22. Nc5 {[%clk 0:01:46.7]}
22... a5 {[%clk 0:00:40.1]} 23. Qe5 {[%clk 0:01:44.4]} 23... e6 {[%clk
0:00:35.9]} 24. Nxd7 {[%clk 0:01:09.2]} 24... Rxc1 {[%clk 0:00:18.8]} 25. N5f6+
{[%clk 0:01:02.4]} 25... Nxf6 {[%clk 0:00:16.5]} 26. Nxf6+ {[%clk 0:01:03.7]}
26... Qxf6 {[%clk 0:00:16.9]} 27. Qxf6 {[%clk 0:00:58.1]} 27... Rxd1+ {[%clk
0:00:18.4]} 28. Bf1 {[%clk 0:00:59.3]} 28... Rc8 {[%clk 0:00:19.9]} 29. Kg2
{[%clk 0:00:45.3]} 29... Rcc1 {[%clk 0:00:21.3]} 30. Kf3 {[%clk 0:00:27.7]}
30... Rxf1 {[%clk 0:00:08.7]} 31. Qd8+ {[%clk 0:00:28.4]} 31... Kg7 {[%clk
0:00:10.2]} 32. Qxd6 {[%clk 0:00:29.9]} 32... Rc2 {[%clk 0:00:04.7]} 33. Qe5+
{[%clk 0:00:23.1]} 33... Kg8 {[%clk 0:00:05.8]} 34. a3 {[%clk 0:00:21.6]} 34...
b4 {[%clk 0:00:04.3]} 35. axb4 {[%clk 0:00:18.6]} 35... axb4 {[%clk 0:00:06.2]}
36. Qb8+ {[%clk 0:00:20.2]} 36... Kg7 {[%clk 0:00:07.2]} 37. Qxb4 {[%clk
0:00:22.1]} 37... Rd1 {[%clk 0:00:07]} 38. Qb5 {[%clk 0:00:17.4]} 1-0

[Event "*** Monthly 3|2 Blitz Masters"]
[Site "Chess.com"]
[Date "2014.10.28"]
[Round "7"]
[White "JamesColeman"]
[Black "chesstatour"]
[Result "1-0"]
[WhiteElo "2304"]
[BlackElo "1792"]
[TimeControl "180+2"]
[EndTime "13:15:54 PDT"]
[Termination "JamesColeman won on time"]

1. d4 {[%clk 0:03:00]} 1... Nf6 {[%clk 0:02:55.7]} 2. Nf3 {[%clk 0:03:00.7]}
2... g6 {[%clk 0:02:54.1]} 3. Nc3 {[%clk 0:03:01.8]} 3... Bg7 {[%clk 0:02:55.6]}
4. e4 {[%clk 0:03:02.4]} 4... d6 {[%clk 0:02:55.7]} 5. Be3 {[%clk 0:03:02.7]}
5... O-O {[%clk 0:02:56.4]} 6. Qd2 {[%clk 0:03:04.2]} 6... Ng4 {[%clk
0:02:57.5]} 7. Bg5 {[%clk 0:03:05.1]} 7... h6 {[%clk 0:02:58.3]} 8. h3 {[%clk
0:03:05.6]} 8... Nxf2 {[%clk 0:02:54.4]} 9. Qxf2 {[%clk 0:03:07.5]} 9... hxg5
{[%clk 0:02:54.4]} 10. Nxg5 {[%clk 0:03:09.4]} 10... f6 {[%clk 0:02:53.6]} 11.
Bc4+ {[%clk 0:03:09.3]} 11... e6 {[%clk 0:02:39.1]} 12. Bxe6+ {[%clk 0:03:06]}
12... Bxe6 {[%clk 0:02:37.1]} 13. Nxe6 {[%clk 0:03:07.9]} 13... Qe7 {[%clk
0:02:37.3]} 14. Nxf8 {[%clk 0:03:07.6]} 14... Qxf8 {[%clk 0:02:38.3]} 15. O-O
{[%clk 0:02:47.6]} 15... Nc6 {[%clk 0:02:36.3]} 16. Rad1 {[%clk 0:02:42]} 16...
Re8 {[%clk 0:02:31.1]} 17. Rfe1 {[%clk 0:02:36.8]} 17... Qf7 {[%clk 0:02:17.7]}
18. Nd5 {[%clk 0:02:35.4]} 18... Nd8 {[%clk 0:02:15.3]} 19. b3 {[%clk
0:02:24.9]} 19... Ne6 {[%clk 0:01:51.5]} 20. Nf4 {[%clk 0:02:17.7]} 20... Ng5
{[%clk 0:01:43.6]} 21. Qe3 {[%clk 0:02:03.6]} 21... Bh6 {[%clk 0:01:43.1]} 22.
Qd3 {[%clk 0:02:01.8]} 22... Kg7 {[%clk 0:01:26.5]} 23. c3 {[%clk 0:01:50.2]}
23... c6 {[%clk 0:01:17.1]} 24. h4 {[%clk 0:01:44.1]} 24... Nh7 {[%clk
0:01:14.1]} 25. Rf1 {[%clk 0:01:39.5]} 25... Qd7 {[%clk 0:01:06.3]} 26. Qh3
{[%clk 0:01:38]} 26... Qxh3 {[%clk 0:00:58.5]} 27. Nxh3 {[%clk 0:01:37.9]} 27...
Rxe4 {[%clk 0:00:59]} 28. Rde1 {[%clk 0:01:35.1]} 28... Be3+ {[%clk 0:00:50.4]}
29. Kh2 {[%clk 0:01:25.3]} 29... f5 {[%clk 0:00:43.1]} 30. g3 {[%clk 0:01:21.1]}
30... Nf6 {[%clk 0:00:25.4]} 31. Ng5 {[%clk 0:00:54.7]} 31... Bxg5 {[%clk
0:00:14.8]} 32. hxg5 {[%clk 0:00:54.3]} 32... Ng4+ {[%clk 0:00:09.4]} 33. Kg1
{[%clk 0:00:38.7]} 33... Ne3 {[%clk 0:00:06.5]} 34. Rf3 {[%clk 0:00:36.4]} 34...
Nd5 {[%clk 0:00:06.9]} 35. Ref1 {[%clk 0:00:12.8]} 35... Rg4 {[%clk 0:00:06.5]}
36. Kh2 {[%clk 0:00:12.7]} 36... Rxg5 {[%clk 0:00:07.4]} 37. Re1 {[%clk
0:00:13]} 37... Kf6 {[%clk 0:00:07.2]} 38. c4 {[%clk 0:00:14.1]} 38... Ne7
{[%clk 0:00:07.8]} 39. Rfe3 {[%clk 0:00:15.3]} 39... Ng8 {[%clk 0:00:07.6]} 40.
Re6+ {[%clk 0:00:15.7]} 40... Kg7 {[%clk 0:00:06.5]} 41. Re8 {[%clk 0:00:17.6]}
41... Rh5+ {[%clk 0:00:04.5]} 42. Kg2 {[%clk 0:00:18.7]} 42... Nf6 {[%clk
0:00:05.1]} 43. R1e7+ {[%clk 0:00:19.8]} 43... Kh6 {[%clk 0:00:05.8]} 44. Rh8+
{[%clk 0:00:21]} 44... Kg5 {[%clk 0:00:07.4]} 45. Rxh5+ {[%clk 0:00:22.9]} 45...
gxh5 {[%clk 0:00:09]} 46. Rxb7 {[%clk 0:00:24.8]} 46... h4 {[%clk 0:00:08.3]}
47. gxh4+ {[%clk 0:00:25.4]} 1-0